bitfinex/quotes_SOLUSD_20250823
["timestamp","ask_amount","ask_price","bid_price","bid_amount"]
[1755968328562,37.76,203.48,203.47,0.03]
[1755968329845,0.06,203.49,203.47,0.03]
[1755968330050,37.76,203.48,203.47,0.03]
[1755968332863,0.06,203.48,203.47,0.03]
[1755968333067,37.82,203.48,203.47,0.03]
[1755968333850,64.49,203.48,203.47,0.03]
[1755968334861,72.09557108,203.48,203.47,0.03]
[1755968335662,64.49,203.48,203.47,0.03]
[1755968335968,51.29438213,203.48,203.47,0.03]
[1755968336153,48.34864022,203.48,203.47,0.03]
[1755968336353,78.63132071,203.48,203.47,0.03]
[1755968337568,66.74306914,203.48,203.47,0.03]
[1755968337864,78.63132071,203.48,203.47,0.03]
[1755968338062,66.74306914,203.48,203.47,0.03]
[1755968338245,78.63132071,203.48,203.47,0.03]
[1755968338866,40.87132071,203.48,203.47,0.03]
[1755968339166,78.63132071,203.48,203.47,0.03]
[1755968339564,2.028746,203.48,203.47,0.71]
[1755968339765,37.82,203.48,203.47,0.71]
[1755968339970,26.06,203.48,203.47,5.62472944]
[1755968340172,63.82,203.48,203.47,5.62472944]
[1755968340743,37.82,203.48,203.47,5.62472944]
[1755968342866,37.84,203.48,203.47,5.62472944]
[1755968343057,0.06,203.48,203.47,5.62472944]
[1755968343371,0.06,203.48,203.47,17.51298101]
[1755968344046,0.06,203.49,203.48,25.48384558]
[1755968344247,0.06,203.49,203.48,26.16384558]
[1755968345067,0.06,203.5,203.48,26.16384558]
[1755968345269,0.06,203.5,203.49,26.16384558]
[1755968345669,0.06,203.5,203.49,19.18984041]
[1755968345965,0.06,203.5,203.49,31.07809198]
[1755968347674,0.06,203.5,203.49,33.04548198]
[1755968356079,0.06,203.54,203.5,13.59559401]
[1755968356279,0.06,203.54,203.52,25.48384558]
[1755968356774,0.06,203.54,203.52,33.25206506]
[1755968357179,0.06,203.54,203.52,28.13094558]
[1755968357787,0.06,203.54,203.52,33.04446759]
[1755968357991,0.06,203.54,203.53,12.56825157]
[1755968358381,0.06,203.54,203.53,14.53535157]
[1755968359701,0.74,203.54,203.53,11.88825157]
[1755968359902,0.74,203.54,203.53,16.80153216]
[1755968360098,0.06,203.54,203.53,16.80153216]
[1755968361688,0.74,203.54,203.53,16.80153216]
[1755968363407,0.74,203.54,203.53,11.88825157]
[1755968363905,0.06,203.54,203.53,11.88825157]
[1755968365479,0.06,203.54,203.53,16.80153216]
[1755968365682,0.06,203.54,203.53,17.48153216]
[1755968368190,0.06,203.54,203.53,19.44863316]
[1755968368994,0.06,203.55,203.53,33.04422717]
[1755968369302,0.06,203.55,203.54,12.56825157]
[1755968369706,0.06,203.55,203.54,14.53525557]
[1755968370900,0.06,203.55,203.54,19.44829477]
[1755968371901,0.06,203.57,203.54,33.04388878]
[1755968372098,0.06,203.57,203.56,11.88825157]
[1755968372489,0.06,203.57,203.56,13.85506157]
[1755968372806,0.06,203.57,203.56,14.53506157]
[1755968372993,0.06,203.57,203.56,19.44761806]
[1755968375703,0.76,203.57,203.56,4.91255649]
[1755968376411,0.06,203.57,203.56,16.80080806]
[1755968380414,0.06,203.57,203.56,17.48080806]
[1755968383915,0.06,203.57,203.56,16.80080806]
[1755968386805,0.06,203.57,203.56,4.91255649]
[1755968387033,0.06,203.57,203.56,16.80080806]
[1755968389315,0.06,203.57,203.56,17.48080806]
[1755968390923,0.06,203.57,203.56,5.59255649]
[1755968391244,0.06,203.57,203.56,17.48080806]
[1755968392328,0.06,203.57,203.56,19.44771506]
[1755968393354,0.06,203.57,203.56,18.76771506]
[1755968394352,0.06,203.57,203.56,14.47428411]
[1755968396621,0.06,203.57,203.56,15.15428411]
[1755968400031,0.06,203.57,203.56,14.47428411]
[1755968400373,0.06,203.57,203.56,15.14428411]
[1755968400566,0.06,203.57,203.56,6.87946349]
[1755968400765,0.78,203.57,203.56,4.91255649]
[1755968401851,0.06,203.57,203.56,4.91255649]
[1755968402156,0.78,203.57,203.56,4.91255649]
[1755968402364,0.78,203.57,203.55,4.94279783]
[1755968402534,0.78,203.57,203.55,6.90980083]
[1755968402729,0.06,203.57,203.55,6.90980083]
[1755968402931,0.78,203.57,203.55,6.90980083]
[1755968403342,0.06,203.57,203.55,7.57980083]
[1755968403549,0.06,203.57,203.56,0.67]
[1755968404125,0.06,203.59,203.57,13.59559401]
[1755968404435,0.06,203.59,203.58,51.20121763]
[1755968404949,0.06,203.62,203.59,13.59559401]
[1755968405147,0.06,203.62,203.6,41.17991248]
[1755968405347,0.06,203.62,203.61,3.41991248]
[1755968405562,0.06,203.62,203.61,12.9812531]
[1755968405767,0.06,203.65,203.62,13.59559401]
[1755968405974,0.06,203.65,203.64,21.19041463]
[1755968406138,1e-08,203.65,203.64,24.89465025]
[1755968406341,1e-08,203.65,203.64,56.9762206]
[1755968406539,0.72000001,203.65,203.64,3.41910521]
[1755968406766,0.72000001,203.65,203.64,8.3297318]
[1755968407073,0.72000001,203.65,203.61,13.82304506]
[1755968407228,0.72000001,203.65,203.62,3.41928135]
[1755968407436,0.72000001,203.65,203.63,3.41928135]
[1755968407765,1e-08,203.65,203.64,3.41939415]
[1755968408140,1e-08,203.65,203.64,11.85652506]
[1755968408353,0.72000001,203.65,203.64,8.33010569]
[1755968408884,1e-08,203.65,203.64,20.18663075]
[1755968409643,1e-08,203.65,203.64,8.33010569]
[1755968409882,1e-08,203.65,203.64,20.18663075]
[1755968410074,1e-08,203.65,203.64,20.85663075]
[1755968410243,1e-08,203.65,203.64,20.85329588]
[1755968411677,1e-08,203.65,203.64,22.81942888]
[1755968411878,1e-08,203.65,203.64,36.41502289]
[1755968412172,1e-08,203.65,203.64,24.55849783]
[1755968412380,1e-08,203.65,203.64,35.74502289]
[1755968412561,1e-08,203.65,203.64,73.56502289]
[1755968412750,1e-08,203.65,203.64,74.23502289]
[1755968413084,0.72000001,203.65,203.64,18.73328465]
[1755968413286,0.72000001,203.65,203.64,6.87675959]
[1755968413501,0.72000001,203.65,203.64,1.966133]
[1755968414096,0.72000001,203.65,203.61,42.77114008]
[1755968414260,0.72,203.64,203.62,3.41285558]
[1755968414455,0.72,203.64,203.61,42.77114008]
[1755968414456,1e-08,203.65,203.63,8.32372333]
[1755968414655,1e-08,203.65,203.63,4.91086775]
[1755968415557,0.72,203.64,203.63,4.91086775]
[1755968415755,1e-08,203.65,203.63,8.32351993]
[1755968415955,1e-08,203.65,203.63,4.91086775]
[1755968416454,1e-08,203.65,203.62,4.91110892]
[1755968416677,1e-08,203.65,203.63,3.41260837]
[1755968416878,0.72000001,203.65,203.62,4.91110892]
[1755968417089,1e-08,203.65,203.63,3.4126074]
[1755968417276,1e-08,203.65,203.64,0.67]
[1755968417483,1e-08,203.65,203.62,16.76763398]
[1755968417672,1e-08,203.65,203.63,3.41311498]
[1755968417673,0.72000001,203.65,203.63,3.41311498]
[1755968417981,1e-08,203.65,203.62,19.65783392]
[1755968418186,1e-08,203.65,203.63,3.4137779]
[1755968418369,1e-08,203.65,203.62,20.32783392]
[1755968418569,1e-08,203.65,203.64,4.91062659]
[1755968419192,0.72000001,203.65,203.63,4.91086374]
[1755968419400,0.72,203.64,203.62,52.586725]
[1755968419600,0.72,203.64,203.62,42.75103673]
[1755968420297,1e-08,203.65,203.62,42.75103673]
[1755968420585,1e-08,203.65,203.63,3.4129948]
[1755968420761,0.72000001,203.65,203.62,42.75103673]
[1755968420978,1e-08,203.65,203.63,3.41371782]
[1755968421305,1e-08,203.65,203.64,29.5351397]
[1755968421906,1e-08,203.65,203.64,67.3751397]
[1755968422092,1e-08,203.65,203.64,67.65946284]
[1755968422585,1e-08,203.65,203.64,72.57008943]
[1755968423296,1e-08,203.65,203.64,13.59559401]
[1755968423479,1e-08,203.65,203.64,51.43559401]
[1755968424623,0.72000001,203.65,203.61,17.05217466]
[1755968424813,0.72,203.64,203.62,54.78895084]
[1755968425105,1e-08,203.65,203.62,13.59559401]
[1755968425414,1e-08,203.65,203.62,51.43559401]
[1755968425911,0.72000001,203.65,203.62,51.43559401]
[1755968426110,0.72,203.64,203.62,37.84]
[1755968426317,0.72,203.63,203.61,11.856525]
[1755968426616,1e-08,203.65,203.62,0.67]
[1755968426804,1e-08,203.65,203.62,37.84]
[1755968427003,0.72,203.64,203.61,37.86]
[1755968428112,12.56652506,203.64,203.61,37.86]
[1755968428693,12.56652506,203.63,203.6,11.856525]
[1755968428918,11.85652506,203.61,203.57,37.88]
[1755968429120,11.85652506,203.61,203.58,3.35605292]
[1755968429121,12.56652506,203.61,203.58,3.35605292]
[1755968429422,12.56652506,203.61,203.57,51.156525]
[1755968429623,12.56652506,203.61,203.58,3.28314126]
[1755968429822,4.91041655,203.65,203.57,50.446525]
[1755968429823,0.71,203.63,203.57,38.59]
[1755968430123,11.85652506,203.61,203.58,3.28415533]
[1755968430320,11.85652506,203.61,203.57,58.2733628]
[1755968430521,0.71,203.61,203.58,3.28518076]
[1755968430726,0.71,203.61,203.57,58.2733628]
[1755968430914,0.71,203.61,203.58,3.28507029]
[1755968431115,0.71,203.61,203.57,52.651076]
[1755968431325,0.71,203.61,203.58,3.28504454]
[1755968431523,0.71,203.61,203.57,58.27339022]
[1755968431823,0.71,203.61,203.58,3.28450397]
[1755968432015,0.71,203.61,203.57,58.27339022]
[1755968432206,0.71,203.61,203.58,3.2845789]
[1755968432406,0.71,203.61,203.57,43.52231422]
[1755968432622,12.56652506,203.61,203.58,3.28407542]
[1755968432823,12.56652506,203.61,203.58,11.886525]
[1755968433128,12.56652506,203.61,203.58,0.03]
[1755968433632,0.71,203.6,203.58,0.03]
[1755968433814,11.85652506,203.59,203.58,0.03]
[1755968434125,11.85652506,203.6,203.58,0.03]
[1755968434429,30.91084545,203.64,203.58,0.03]
[1755968434638,0.71,203.59,203.58,0.03]
[1755968434937,11.85652506,203.6,203.58,0.03]
[1755968435315,0.71,203.6,203.58,0.03]
[1755968438944,11.85652506,203.62,203.58,0.03]
[1755968439251,0.71,203.59,203.58,0.03]
[1755968439441,12.56652506,203.61,203.58,0.03]
[1755968439752,11.85652506,203.62,203.58,0.74]
[1755968439931,0.71,203.61,203.58,0.03]
[1755968440824,1e-08,203.65,203.59,12.56652506]
[1755968441133,0.71,203.64,203.59,12.56652506]
[1755968441334,1e-08,203.65,203.59,12.56652506]
[1755968441533,0.71,203.63,203.59,12.56652506]
[1755968441731,0.71,203.63,203.59,0.71]
[1755968442456,0.71,203.63,203.59,5.62174464]
[1755968446955,0.71,203.63,203.6,0.71]
[1755968447121,0.71,203.63,203.59,4.91174464]
[1755968447319,11.85652507,203.65,203.6,0.71]
[1755968447751,0.71,203.64,203.59,4.91174464]
[1755968447932,12.56652506,203.64,203.58,5.65206878]
[1755968448134,0.71,203.63,203.59,3.18009096]
[1755968448347,0.71,203.63,203.59,0.71]
[1755968448534,0.71,203.62,203.59,0.71]
[1755968448741,12.56652506,203.64,203.59,5.62183059]
[1755968448934,11.85652506,203.64,203.59,5.62183059]
[1755968449133,0.71,203.63,203.59,5.62183059]
[1755968450032,0.71,203.63,203.6,0.71]
[1755968450737,11.85652507,203.65,203.62,11.85652506]
[1755968450738,1e-08,203.65,203.62,11.85652506]
[1755968450958,1e-08,203.65,203.62,12.56652506]
[1755968451163,12.56652506,203.64,203.61,11.856525]
[1755968451364,11.85652506,203.64,203.58,12.59652506]
[1755968451554,0.71,203.63,203.59,3.1815004]
[1755968451859,0.71,203.63,203.59,12.566525]
[1755968452053,0.71,203.62,203.58,0.03]
[1755968452251,0.71,203.62,203.59,3.18177169]
[1755968452451,0.71,203.63,203.59,0.71]
[1755968452852,0.71,203.63,203.59,5.62178938]
[1755968453157,11.85652506,203.64,203.6,0.71]
[1755968453352,0.71,203.63,203.59,4.91178938]
[1755968453557,0.71,203.63,203.59,5.62178938]
[1755968453748,1e-08,203.65,203.6,15.74805891]
[1755968454068,1e-08,203.65,203.6,24.42305006]
[1755968454370,1e-08,203.65,203.61,0.71]
[1755968454758,1e-08,203.65,203.62,0.71]
[1755968454965,1e-08,203.65,203.62,12.56652506]
[1755968455377,1e-08,203.65,203.63,0.71]
[1755968455669,1e-08,203.65,203.63,12.56652506]
[1755968455964,1e-08,203.65,203.64,29.83597674]
[1755968456137,0.06,203.68,203.64,95.45517723]
[1755968456340,0.06,203.68,203.67,25.45211907]
[1755968456973,0.06,203.68,203.67,33.03776834]
[1755968457463,0.06,203.68,203.67,36.21880327]
[1755968457774,0.06,203.68,203.67,36.21906852]
[1755968458455,0.06,203.68,203.67,1.965746]
[1755968458774,0.76,203.68,203.63,11.85652506]
[1755968459074,0.7,203.67,203.62,12.51652506]
[1755968459365,0.7,203.67,203.63,15.03855609]
[1755968459575,0.7,203.67,203.63,12.516525]
[1755968459945,0.06,203.68,203.64,12.51652506]
[1755968460146,0.06,203.68,203.65,3.18203548]
[1755968460374,0.06,203.68,203.65,0.66]
[1755968460560,0.06,203.68,203.63,11.856525]
[1755968460561,0.06,203.68,203.63,28.62384771]
[1755968460868,0.76,203.68,203.64,3.18169618]
[1755968461080,0.06,203.68,203.63,12.516525]
[1755968461248,0.06,203.68,203.63,23.71305006]
[1755968461444,0.06,203.68,203.64,0.66]
[1755968462556,11.85652506,203.67,203.64,0.66]
[1755968462861,0.06,203.68,203.65,0.66]
[1755968463064,11.91652506,203.68,203.64,0.66]
[1755968463463,11.91652506,203.68,203.65,0.66]
[1755968464370,11.85652506,203.67,203.63,4.91082656]
[1755968464556,12.61652506,203.68,203.64,0.66]
[1755968465867,11.91652506,203.68,203.65,0.66]
[1755968467486,0.06,203.68,203.65,0.66]
[1755968467684,0.06,203.68,203.63,4.91078076]
[1755968467685,0.06,203.68,203.63,11.85652506]
[1755968468084,0.06,203.68,203.64,0.66]
[1755968468294,0.06,203.68,203.65,0.66]
[1755968468478,0.06,203.68,203.66,0.66]
[1755968469888,0.7,203.67,203.63,13.59559401]
[1755968470388,0.7,203.67,203.63,14.25559401]
[1755968470899,11.91652506,203.68,203.64,0.66]
[1755968471193,12.61652506,203.68,203.64,0.66]
[1755968471794,11.85652506,203.67,203.64,0.66]
[1755968471977,0.06,203.68,203.65,0.66]
[1755968472176,0.06,203.68,203.66,0.66]
[1755968472400,0.06,203.68,203.65,0.66]
[1755968473200,0.06,203.68,203.66,0.66]
[1755968473403,0.06,203.68,203.62,30.36316886]
[1755968473404,0.06,203.68,203.63,0.66]
[1755968473899,11.91652506,203.68,203.63,0.66]
[1755968475301,0.06,203.68,203.64,0.66]
[1755968475503,11.91652506,203.68,203.64,0.66]
[1755968476206,11.91652506,203.68,203.65,0.66]
[1755968476600,11.91652506,203.68,203.62,18.50649242]
[1755968476809,0.06,203.68,203.67,13.59559401]
[1755968477105,0.06,203.68,203.67,14.25559401]
[1755968477680,0.06,203.68,203.67,22.48739333]
[1755968477994,0.06,203.68,203.67,17.57749006]
[1755968478187,0.06,203.68,203.67,14.25559401]
[1755968479501,0.06,203.68,203.67,13.59559401]
[1755968480381,0.06,203.68,203.66,13.59559401]
[1755968480879,0.06,203.68,203.66,0.66]
[1755968483301,0.06,203.68,203.67,0.66]
[1755968484093,0.06,203.68,203.67,4.09782102]
[1755968485301,0.06,203.68,203.67,3.43688413]
[1755968487112,0.06,203.68,203.67,3.43632868]
[1755968487287,0.06,203.68,203.67,4.09632868]
[1755968487493,0.06,203.68,203.67,4.09624553]
[1755968488017,0.06,203.68,203.67,15.95277059]
[1755968489391,0.06,203.68,203.67,15.95258737]
[1755968490391,0.06,203.68,203.67,15.95405652]
[1755968490919,0.06,203.68,203.67,3.43753146]
[1755968493595,0.06,203.68,203.67,3.44182797]
[1755968496831,0.06,203.68,203.67,3.44307439]
[1755968497421,0.06,203.68,203.66,17.45665607]
[1755968497918,0.06,203.68,203.67,0.69]
[1755968498708,0.06,203.68,203.67,17.45642833]
[1755968498909,0.06,203.68,203.67,20.9009063]
[1755968499997,0.06,203.68,203.67,3.44447797]
[1755968500213,12.62652506,203.68,203.67,3.44447797]
[1755968501202,0.77,203.68,203.67,3.44447797]
[1755968501415,12.62652506,203.68,203.67,3.44447797]
[1755968502095,17.53618727,203.68,203.67,3.44447797]
[1755968502913,17.53618727,203.68,203.62,0.03]
[1755968503228,11.85652506,203.64,203.63,3.16250514]
[1755968503533,12.56652506,203.64,203.63,3.16250514]
[1755968504439,12.56652506,203.64,203.62,0.03]
[1755968504634,12.56652506,203.63,203.62,0.03]
[1755968505211,12.56652506,203.63,203.62,3.11972278]
[1755968505432,4.96988773,203.68,203.62,3.11972278]
[1755968505433,11.85652506,203.65,203.62,3.11972278]
[1755968505640,12.56652506,203.66,203.63,3.08972278]
[1755968505832,12.56652506,203.66,203.64,3.08972278]
[1755968506015,12.56652506,203.66,203.65,3.08972278]
[1755968506534,12.56652506,203.66,203.62,0.72]
[1755968506719,12.56652506,203.66,203.62,5.6310909]
[1755968506920,0.77,203.68,203.63,0.69]
[1755968507241,12.56652506,203.67,203.63,5.60079069]
[1755968507428,0.71,203.67,203.63,5.60079069]
[1755968507830,0.06,203.68,203.64,0.69]
[1755968507831,11.91652506,203.68,203.64,0.69]
[1755968508127,0.06,203.68,203.65,0.69]
[1755968508842,0.06,203.68,203.66,3.77889638]
[1755968509042,0.06,203.68,203.66,0.69]
[1755968509213,0.06,203.68,203.67,8.68838246]
[1755968509615,0.06,203.68,203.67,19.85490752]
[1755968509811,0.06,203.68,203.67,20.54490752]
[1755968510222,0.06,203.68,203.67,8.68838246]
[1755968511157,0.06,203.68,203.67,20.54490752]
[1755968511739,0.77,203.68,203.67,3.08847919]
[1755968512320,0.77,203.68,203.64,4.91042416]
[1755968512544,0.77,203.68,203.65,3.32311359]
[1755968512733,0.77,203.68,203.66,3.32311359]
[1755968512921,0.77,203.68,203.64,0.69]
[1755968513127,0.06,203.68,203.65,15.86963488]
[1755968513447,0.06,203.68,203.66,3.32310982]
[1755968513626,0.06,203.68,203.67,3.32310982]
[1755968514653,0.06,203.68,203.67,3.34900386]
[1755968515121,0.06,203.68,203.65,0.69]
[1755968515326,0.06,203.68,203.66,3.34920205]
[1755968515528,0.06,203.68,203.67,3.34920205]
[1755968519560,12.59652506,203.68,203.63,0.03]
[1755968519744,11.85652506,203.67,203.64,3.35014701]
[1755968519944,12.53652506,203.67,203.65,3.35014701]
[1755968520139,11.85652506,203.67,203.66,3.35014701]
[1755968520347,11.85652506,203.67,203.63,0.03]
[1755968520554,11.85652506,203.66,203.64,3.35083933]
[1755968520758,11.85652506,203.66,203.65,3.35083933]
[1755968520952,11.85652506,203.66,203.63,0.03]
[1755968521151,11.85652506,203.65,203.64,3.3520743]
[1755968521343,0.68,203.65,203.64,3.3520743]
[1755968521552,12.53652506,203.65,203.64,3.3520743]
[1755968521754,17.44691052,203.65,203.63,0.03]
[1755968521939,12.53652506,203.64,203.63,0.03]
[1755968523532,17.44715165,203.64,203.63,0.03]
[1755968523730,26.0,203.67,203.63,0.03]
[1755968523934,11.85652506,203.65,203.63,0.03]
[1755968524538,12.53652506,203.65,203.63,0.03]
[1755968526473,26.74,203.68,203.63,0.73]
[1755968526647,11.85652506,203.65,203.63,0.03]
[1755968526970,12.53652506,203.64,203.63,0.03]
[1755968527866,0.68,203.64,203.63,0.03]
[1755968528056,12.53652506,203.64,203.63,0.03]
[1755968529461,11.85652506,203.64,203.63,0.03]
[1755968529666,11.85652506,203.65,203.63,0.03]
[1755968529866,11.91652506,203.65,203.63,0.03]
[1755968530056,0.06,203.65,203.63,0.03]
[1755968530252,11.91652506,203.65,203.63,0.03]
[1755968530852,12.59652506,203.65,203.63,0.03]
[1755968533851,11.91652506,203.65,203.63,0.03]
[1755968534253,0.06,203.65,203.63,0.73]
[1755968534453,0.06,203.65,203.64,0.7]
[1755968539459,0.06,203.65,203.64,3.86859272]
[1755968539657,0.06,203.65,203.64,0.7]
[1755968539950,0.06,203.65,203.64,5.61062659]
[1755968540156,0.06,203.65,203.64,8.77921969]
[1755968542200,0.06,203.65,203.64,34.23133876]
[1755968542803,0.06,203.65,203.64,34.23133]
[1755968543707,0.06,203.65,203.64,16.76417835]
[1755968543889,0.06,203.65,203.64,8.08031283]
[1755968544783,0.06,203.65,203.64,8.78031283]
[1755968544980,0.06,203.65,203.64,20.63683789]
[1755968547019,0.06,203.65,203.64,20.66683789]
[1755968547917,0.06,203.65,203.64,22.40590684]
[1755968548097,0.06,203.65,203.64,34.2624319]
[1755968548609,0.06,203.65,203.64,16.79528025]
[1755968548909,0.06,203.65,203.64,28.65180531]
[1755968549204,0.06,203.65,203.64,34.2624319]
[1755968551601,0.06,203.65,203.64,3.19968624]
[1755968551798,0.06,203.65,203.64,8.11031283]
[1755968552517,0.06,203.65,203.64,4.94062659]
[1755968552689,0.06,203.65,203.64,8.03952764]
[1755968552896,0.06,203.65,203.64,3.12890105]
[1755968555791,0.74,203.65,203.64,3.12890105]
[1755968556393,12.59652506,203.65,203.64,3.12890105]
[1755968556615,12.59652506,203.65,203.64,0.03]
[1755968561012,0.06,203.65,203.64,0.73]
[1755968561226,0.06,203.65,203.64,3.83156828]
[1755968562312,0.06,203.65,203.64,3.83152622]
[1755968563318,12.59652506,203.65,203.64,3.13152622]
[1755968563509,12.59652506,203.65,203.64,0.03]
[1755968566240,11.91652506,203.65,203.64,0.03]
[1755968568326,12.59652506,203.65,203.64,0.03]
[1755968571351,0.74,203.65,203.64,0.03]
[1755968571519,12.59652506,203.65,203.64,0.03]
[1755968577952,12.59652506,203.65,203.6,5.28214878]
[1755968578130,11.85652506,203.63,203.61,3.125784]
[1755968578331,11.85652506,203.63,203.62,3.125784]
[1755968580641,11.85652506,203.63,203.6,5.28213639]
[1755968580947,11.35652506,203.62,203.61,3.12502485]
[1755968581249,11.35652506,203.62,203.56,4.941277]
[1755968581457,37.84,203.65,203.58,0.03]
[1755968581458,11.85652506,203.6,203.58,0.03]
[1755968581634,11.85652506,203.6,203.59,3.15565737]
[1755968581825,12.57652506,203.6,203.59,3.15565737]
[1755968582456,12.57652506,203.6,203.59,0.03]
[1755968582952,0.72,203.61,203.59,3.15423065]
[1755968583127,11.85652506,203.6,203.59,0.03]
[1755968583327,11.85652506,203.6,203.59,3.15380469]
[1755968583542,11.85652506,203.6,203.59,3.15356427]
[1755968584542,11.85652506,203.6,203.59,0.03]
[1755968586550,11.85652506,203.6,203.59,3.15249723]
[1755968586953,0.72,203.64,203.59,8.72432983]
[1755968587145,0.72,203.64,203.6,3.78246333]
[1755968587469,11.85652506,203.63,203.61,3.7822141]
[1755968587641,11.85652506,203.64,203.62,0.66]
[1755968587966,11.85652506,203.64,203.6,0.66]
[1755968588136,11.85652506,203.64,203.62,4.91110892]
[1755968589246,11.85652506,203.64,203.62,5.57110892]
[1755968589559,11.85652506,203.64,203.62,4.91110892]
[1755968589746,11.91652506,203.65,203.63,3.12141747]
[1755968589953,11.91652506,203.65,203.64,3.12141747]
[1755968590458,11.91652506,203.65,203.63,5.57075009]
[1755968591133,11.91652506,203.65,203.61,4.91135013]
[1755968591339,11.91652506,203.65,203.62,3.7821635]
[1755968591591,11.91652506,203.65,203.63,3.1221635]
[1755968591745,11.91652506,203.65,203.62,0.66]
[1755968591944,11.91652506,203.65,203.63,3.12225522]
[1755968592143,11.91652506,203.65,203.62,0.66]
[1755968592346,11.91652506,203.65,203.63,3.1225801]
[1755968592546,11.91652506,203.65,203.62,0.66]
[1755968592745,11.91652506,203.65,203.63,3.1226795]
[1755968592951,12.63652506,203.65,203.61,4.91135013]
[1755968593270,0.72,203.64,203.62,3.12371263]
[1755968593451,0.72,203.64,203.59,5.6018326]
[1755968593654,0.72,203.64,203.6,15.64068651]
[1755968593881,0.72,203.64,203.61,3.12416145]
[1755968594176,0.72,203.64,203.6,12.51652506]
[1755968594376,0.72,203.64,203.61,3.12398639]
[1755968594657,0.72,203.64,203.6,17.42802575]
[1755968594838,0.72,203.64,203.61,3.12412038]
[1755968595040,0.72,203.63,203.6,0.66]
[1755968595353,0.72,203.62,203.61,3.12440469]
[1755968597569,11.85652506,203.63,203.61,3.12440469]
[1755968597752,12.57652506,203.63,203.59,4.94177984]
[1755968597952,12.57652506,203.63,203.6,3.12472785]
[1755968598272,0.72,203.63,203.61,3.12472785]
[1755968598455,0.72,203.63,203.6,4.91158144]
[1755968598638,0.72,203.63,203.61,3.12539357]
[1755968598844,0.72,203.63,203.6,4.91158144]
[1755968599044,0.72,203.63,203.61,3.12522093]
[1755968599244,0.72,203.63,203.6,4.91158144]
[1755968599544,0.72,203.63,203.61,3.12559308]
[1755968599744,0.72,203.63,203.6,4.91158144]
[1755968600038,0.72,203.63,203.61,3.12559361]
[1755968600354,0.72,203.63,203.6,4.91158144]
[1755968600555,0.72,203.63,203.61,3.12594684]
[1755968600757,0.72,203.63,203.6,4.91158144]
[1755968600959,0.72,203.63,203.61,3.12567721]
[1755968601149,0.72,203.63,203.6,5.57158144]
[1755968601482,0.06,203.64,203.61,3.78611881]
[1755968601696,0.06,203.64,203.62,3.12611881]
[1755968601853,0.06,203.64,203.62,0.66]
[1755968604266,0.06,203.64,203.63,3.12593185]
[1755968605751,0.06,203.64,203.63,8.6967996]
[1755968605965,0.06,203.64,203.63,8.0367996]
[1755968606361,0.06,203.64,203.63,8.6967996]
[1755968608763,0.06,203.64,203.63,8.68659094]
[1755968609578,0.06,203.64,203.63,8.02659094]
[1755968609754,0.06,203.64,203.63,5.60086775]
[1755968610077,0.06,203.64,203.63,8.71535214]
[1755968612401,0.06,203.64,203.63,20.5718772]
[1755968612758,0.06,203.64,203.63,22.5381072]
[1755968613884,0.06,203.64,203.63,36.13370121]
[1755968619682,0.06,203.64,203.63,33.01921682]
[1755968619928,0.06,203.64,203.63,36.12669978]
[1755968625014,0.06,203.64,203.63,36.41102292]
[1755968626407,0.06,203.64,203.63,32.14000356]
[1755968629419,0.06,203.64,203.63,32.13792956]
[1755968629918,0.06,203.64,203.63,68.92360642]
[1755968630097,0.06,203.64,203.63,68.92339962]
[1755968630609,0.06,203.64,203.63,31.16339962]
[1755968630813,0.06,203.64,203.63,68.92339962]